fUST/lending_fUST_20260105
["ID","MTS","AMOUNT","RATE_DAILY","PERIOD"]
[400469911,1767610231828,-1474.19708624,0.00012666,2]
[400469913,1767610231837,-1474.19708624,0.00012666,2]
[400469915,1767610231847,-1474.19708624,0.00012666,2]
[400469917,1767610231857,-1474.19708624,0.00012666,2]
[400469919,1767610231867,-1474.19708624,0.00012666,2]
[400469921,1767610231876,-1474.19708624,0.00012666,2]
[400469923,1767610231887,-1474.19708624,0.00012666,2]
[400469925,1767610231896,-1474.19708624,0.00012666,2]
[400469927,1767610231907,-1474.19708624,0.00012666,2]
[400469929,1767610231916,-1474.19708624,0.00012666,2]
[400469930,1767610231925,-1474.19708624,0.00012666,2]
[400469931,1767610231934,-1474.19708624,0.00012666,2]
[400469932,1767610231943,-1474.19708624,0.00012666,2]
[400469933,1767610231953,-1474.19708624,0.00012666,2]
[400469934,1767610231962,-1474.19708624,0.00012666,2]
[400469935,1767610231975,-1474.19708624,0.00012666,2]
[400469936,1767610231985,-19196.17614872,0.00012667,2]
[400469937,1767610231994,-610.423228,0.00013699,2]
[400469938,1767610232004,-178.0,0.00014087,2]
[400469939,1767610232014,-177.0,0.00014666,2]
[400469940,1767610232023,-220.3326906,0.00015006,2]
[400469941,1767610232033,-181.761339,0.00015873,2]
[400469942,1767610232042,-500.0,0.00016346,2]
[400469943,1767610232051,-500.0,0.00016438,2]
[400469944,1767610232061,-500.0,0.00016438,2]
[400469945,1767610232070,-500.0,0.00016438,2]
[400469946,1767610232080,-500.0,0.00016438,2]
[400469947,1767610232089,-500.0,0.00016438,2]
[400469948,1767610232098,-500.0,0.00016438,2]
[400469949,1767610232109,-500.0,0.00016438,2]
[400469950,1767610232118,-500.0,0.00016438,2]
[400469951,1767610232130,-500.0,0.00016438,2]
[400469952,1767610232139,-500.0,0.00016438,2]
[400469953,1767610232148,-500.0,0.00016438,2]
[400469954,1767610232157,-500.0,0.00016438,2]
[400469955,1767610232166,-500.0,0.00016438,2]
[400469956,1767610232176,-500.0,0.00016438,2]
[400469957,1767610232185,-500.0,0.00016438,2]
[400469958,1767610232195,-500.0,0.00016438,2]
[400469959,1767610232204,-312.92971257,0.00016438,2]
[400469960,1767610232213,-500.0,0.00016438,2]
[400469961,1767610232223,-1041.66666667,0.0001655,2]
[400469962,1767610232232,-204.0,0.00016666,2]
[400469963,1767610232241,-2030.296672,0.00017031,2]
[400469964,1767610232250,-2105.41764886,0.00017086,2]
[400469965,1767610232259,-178.0,0.00017087,2]
[400469966,1767610232268,-2183.31810187,0.00017141,2]
[400469967,1767610232278,-2264.10087164,0.00017196,2]
[400469968,1767610232287,-2347.87260389,0.00017251,2]
[400469969,1767610232296,-2434.74389024,0.00017306,2]
[400469970,1767610232309,-700.35624604,0.00017326,2]
[400469971,1767610232318,-2798.62355916,0.00017326,2]
[400469972,1767610232328,-606.71532629,0.00017326,2]
[400469973,1767610232337,-2424.43444384,0.00017326,2]
[400469974,1767610232347,-2524.82941417,0.00017361,2]
[400469975,1767610232357,-2618.2481025,0.00017416,2]
[400469976,1767610232366,-2715.12328229,0.00017471,2]
[400469977,1767610232376,-2815.58284374,0.00017526,2]
[400469978,1767610232386,-2919.75940895,0.00017581,2]
[400469979,1767610232395,-3027.79050709,0.00017636,2]
[400469980,1767610232405,-262.5564008,0.00017645,2]
[400469981,1767610232592,-3139.81875585,0.00017691,2]
[400469982,1767610232603,-2547.16110924,0.00017746,2]
[400469983,1767610232613,-602.1959368,0.00017952,2]
[400469984,1767610232624,-653.13554657,0.0001799,2]
[400469985,1767610232634,-25277.17941345,0.00018,2]
[400469986,1767610232644,-241.0,0.00018,2]
[400469987,1767610232656,-600.0,0.00018359,2]
[400469988,1767610232666,-231.0,0.00018666,2]
[400469989,1767610232675,-181.08010149,0.00018799,2]
[400469990,1767610232684,-20007.22184097,0.000188,2]
[400469991,1767610232695,-262.5564008,0.00018834,2]
[400469992,1767610232704,-303.42475521,0.000189,2]
[400469993,1767610232715,-1522.20373316,0.00019,2]
[400469994,1767610232725,-500.0,0.00019086,7]
[400469995,1767610232735,-303.42475521,0.00019089,2]
[400469996,1767610232745,-5000.0,0.00019178,2]
[400469997,1767610232755,-5000.0,0.00019178,2]
[400469998,1767610232764,-5000.0,0.00019178,2]
[400469999,1767610232774,-5000.0,0.00019178,2]
[400470000,1767610232784,-151.0,0.00019178,2]
[400470001,1767610232794,-151.0,0.00019178,2]
[400470002,1767610232804,-121.42222841,0.00019178,2]
[400470003,1767610232817,-29.57777159,0.00019178,2]
[400470004,1767610232826,-151.0,0.00019178,2]
[400470005,1767610232835,-151.0,0.00019178,2]
[400470006,1767610232846,-153.159421,0.00019178,2]
[400470007,1767610232856,-151.0,0.00019178,2]
[400470008,1767610232867,-151.0,0.00019178,2]
[400470009,1767610232876,-151.0,0.00019178,2]
[400470010,1767610232885,-151.0,0.00019178,2]
[400470011,1767610232894,-151.0,0.00019178,2]
[400470012,1767610232904,-177.110661,0.00019178,2]
[400470013,1767610232914,-151.0,0.00019178,2]
[400470014,1767610232923,-151.0,0.00019178,2]
[400470015,1767610232933,-151.0,0.00019178,2]
[400470016,1767610232943,-151.0,0.00019178,2]
[400470017,1767610232952,-151.0,0.00019178,2]
[400470018,1767610232962,-151.0,0.00019178,2]
[400470019,1767610232971,-151.0,0.00019178,2]
[400470020,1767610232980,-196.507159,0.00019178,2]
[400470021,1767610232990,-151.0,0.00019178,2]
[400470022,1767610233000,-151.432148,0.00019178,2]
[400470023,1767610233009,-151.0,0.00019178,2]
[400470024,1767610233019,-151.0,0.00019178,2]
[400470025,1767610233028,-151.0,0.00019178,2]
[400470026,1767610233037,-151.0,0.00019178,2]
[400470027,1767610233047,-151.0,0.00019178,2]
[400470028,1767610233056,-151.0,0.00019178,2]
[400470029,1767610233066,-151.0,0.00019178,2]
[400470030,1767610233075,-151.0,0.00019178,2]
[400470031,1767610233084,-151.0,0.00019178,2]
[400470032,1767610233093,-151.0,0.00019178,2]
[400470033,1767610233102,-209.982944,0.00019178,2]
[400470034,1767610233111,-151.0,0.00019178,2]
[400470035,1767610233120,-151.0,0.00019178,2]
[400470036,1767610233130,-151.0,0.00019178,2]
[400470037,1767610233140,-151.0,0.00019178,2]
[400470038,1767610233149,-151.0,0.00019178,2]
[400470039,1767610233158,-151.0,0.00019178,2]
[400470040,1767610233167,-151.0,0.00019178,2]
[400470041,1767610233177,-151.0,0.00019178,2]
[400470042,1767610233186,-151.0,0.00019178,2]
[400470043,1767610233195,-151.0,0.00019178,2]
[400470044,1767610233203,-151.0,0.00019178,2]
[400470045,1767610233212,-151.0,0.00019178,2]
[400470046,1767610233221,-151.0,0.00019178,2]
[400470047,1767610233230,-151.0,0.00019178,2]
[400470048,1767610233239,-151.0,0.00019178,2]
[400470049,1767610233248,-151.0,0.00019178,2]
[400470050,1767610233257,-151.0,0.00019178,2]
[400470051,1767610233275,-151.0,0.00019178,2]
[400470052,1767610233287,-301.023557,0.00019178,2]
[400470053,1767610233297,-211.969275,0.00019178,2]
[400470054,1767610233307,-151.0,0.00019178,2]
[400470055,1767610233316,-151.0,0.00019178,2]
[400470056,1767610233326,-151.0,0.00019178,2]
[400470057,1767610233335,-151.0,0.00019178,2]
[400470058,1767610233346,-151.0,0.00019178,2]
[400470059,1767610233356,-221.765393,0.00019178,2]
[400470060,1767610233365,-151.0,0.00019178,2]
[400470061,1767610233376,-176.308924,0.00019178,2]
[400470062,1767610233387,-174.996117,0.00019178,2]
[400470063,1767610233398,-163.401425,0.00019178,2]
[400470064,1767610233410,-251.434084,0.00019178,2]
[400470065,1767610233419,-251.434084,0.00019178,2]
[400470066,1767610233430,-251.434084,0.00019178,2]
[400470067,1767610233441,-251.434084,0.00019178,2]
[400470068,1767610233451,-251.434084,0.00019178,2]
[400470069,1767610233461,-251.434084,0.00019178,2]
[400470070,1767610233471,-251.434084,0.00019178,2]
[400470071,1767610233481,-251.434084,0.00019178,2]
[400470072,1767610233490,-251.434084,0.00019178,2]
[400470073,1767610233500,-251.434084,0.00019178,2]
[400470074,1767610233511,-251.434084,0.00019178,2]
[400470075,1767610233522,-251.434084,0.00019178,2]
[400470076,1767610233532,-251.434084,0.00019178,2]
[400470077,1767610233542,-251.434084,0.00019178,2]
[400470078,1767610233551,-251.434084,0.00019178,2]
[400470079,1767610233561,-251.434084,0.00019178,2]
[400470080,1767610233571,-251.434084,0.00019178,2]
[400470081,1767610233580,-251.434084,0.00019178,2]
[400470082,1767610233590,-251.434084,0.00019178,2]
[400470083,1767610233599,-251.434088,0.00019178,2]
[400470084,1767610233609,-151.0,0.00019178,2]
[400470085,1767610233618,-151.0,0.00019178,2]
[400470086,1767610233628,-151.0,0.00019178,2]
[400470087,1767610233637,-151.0,0.00019178,2]
[400470088,1767610233647,-151.0,0.00019178,2]
[400470089,1767610233660,-151.0,0.00019178,2]
[400470090,1767610233670,-151.0,0.00019178,2]
[400470091,1767610233679,-161.524769,0.00019178,2]
[400470092,1767610233690,-195.765928,0.00019178,2]
[400470093,1767610233700,-151.0,0.00019178,2]
[400470094,1767610233709,-151.0,0.00019178,2]
[400470095,1767610233718,-151.0,0.00019178,2]
[400470096,1767610233728,-151.0,0.00019178,2]
[400470097,1767610233739,-151.0,0.00019178,2]
[400470098,1767610233749,-288.925279,0.00019178,2]
[400470099,1767610233758,-188.680435,0.00019178,2]
[400470100,1767610233771,-194.607745,0.00019178,2]
[400470101,1767610233781,-194.607745,0.00019178,2]
[400470102,1767610233792,-194.607745,0.00019178,2]
[400470103,1767610233801,-194.607745,0.00019178,2]
[400470104,1767610233813,-194.607745,0.00019178,2]
[400470105,1767610233823,-194.607745,0.00019178,2]
[400470106,1767610233832,-194.607745,0.00019178,2]
[400470107,1767610233842,-194.607745,0.00019178,2]
[400470108,1767610233853,-194.607745,0.00019178,2]
[400470109,1767610233865,-194.607745,0.00019178,2]
[400470110,1767610233875,-194.607745,0.00019178,2]
[400470111,1767610233885,-194.607745,0.00019178,2]
[400470112,1767610233895,-194.607745,0.00019178,2]
[400470113,1767610233906,-194.607745,0.00019178,2]
[400470114,1767610233916,-194.607745,0.00019178,2]
[400470115,1767610233925,-194.607745,0.00019178,2]
[400470116,1767610233935,-194.607745,0.00019178,2]
[400470117,1767610233947,-194.607745,0.00019178,2]
[400470118,1767610233957,-194.607745,0.00019178,2]
[400470119,1767610233968,-194.607744,0.00019178,2]
[400470120,1767610233977,-151.0,0.00019178,2]
[400470121,1767610233987,-151.0,0.00019178,2]
[400470122,1767610233998,-151.0,0.00019178,2]
[400470123,1767610234008,-151.0,0.00019178,2]
[400470124,1767610234018,-151.0,0.00019178,2]
[400470125,1767610234028,-151.0,0.00019178,2]
[400470126,1767610234037,-151.0,0.00019178,2]
[400470127,1767610234047,-151.0,0.00019178,2]
[400470128,1767610234057,-151.0,0.00019178,2]
[400470129,1767610234066,-151.0,0.00019178,2]
[400470130,1767610234076,-151.0,0.00019178,2]
[400470131,1767610234085,-174.276863,0.00019178,2]
[400470132,1767610234096,-151.0,0.00019178,2]
[400470133,1767610234108,-151.0,0.00019178,2]
[400470134,1767610234117,-151.0,0.00019178,2]
[400470135,1767610234127,-151.0,0.00019178,2]
[400470136,1767610234136,-151.0,0.00019178,2]
[400470137,1767610234145,-151.0,0.00019178,2]
[400470138,1767610234154,-151.0,0.00019178,2]
[400470139,1767610234163,-151.0,0.00019178,2]
[400470140,1767610234172,-151.0,0.00019178,2]
[400470141,1767610234182,-151.0,0.00019178,2]
[400470142,1767610234191,-151.0,0.00019178,2]
[400470143,1767610234200,-207.414308,0.00019178,2]
[400470144,1767610234209,-167.75,0.000192,2]
[400470145,1767610234218,-182.78,0.000192,2]
[400470146,1767610234227,-203.15,0.000192,2]
[400470147,1767610234236,-2619.9,0.000192,2]
[400470148,1767610234245,-496.95419587,0.00019205,5]
[400470149,1767610234255,-303.42475521,0.00019278,2]
[400470150,1767610234264,-217.53259001,0.00019347,2]
[400470151,1767610234274,-303.42475521,0.00019467,2]
[400470152,1767610234284,-160.0,0.00019611,3]
[400470153,1767610234293,-303.42475521,0.00019656,2]
[400470154,1767610234303,-151.0,0.00019787,2]
[400470155,1767610234312,-455.13713282,0.00019845,4]
[400470156,1767610234322,-1616.22834,0.000199,5]
[400470157,1767610234331,-232555.26529556,0.000199,2]
[400470158,1767610234472,-1371.92452659,0.000199,2]
[400470199,1767610237667,-1132.07714844,0.000192,10]
[400470201,1767610237677,-143.45300893,0.000199,2]
[400470207,1767610237722,-724.46984263,0.000199,2]
[400470481,1767610960058,500.0,0.00030136,120]
[400470482,1767610960293,500.0,0.00030136,120]
[400470483,1767611075709,500.0,0.00030136,120]
[400470484,1767611075933,500.0,0.00030136,120]
[400470485,1767611076165,571.4268608,0.00030136,120]
[400470516,1767611256515,500.87731425,0.00030136,120]
[400470538,1767611431793,-612.65091569,0.00012042,10]
[400470571,1767611437800,-737.49014353,0.00012042,10]
[400470573,1767611437810,-187.9293272,0.00012657,2]
[400470582,1767611437908,-12.67072163,0.00012657,2]
[400470583,1767611437918,-273.29886887,0.00012657,2]
[400470584,1767611437929,-1238.32555244,0.00012657,2]
[400470585,1767611437938,-1238.32555244,0.00012657,2]
[400470586,1767611437947,-1238.32555244,0.00012657,2]
[400470587,1767611437956,-1238.32555244,0.00012657,2]
[400470588,1767611437966,-1238.32555244,0.00012657,2]
[400470589,1767611437975,-1238.32555244,0.00012657,2]
[400470590,1767611437984,-1238.32555244,0.00012657,2]
[400470591,1767611437994,-1238.32555244,0.00012657,2]
[400470592,1767611438003,-1238.32555244,0.00012657,2]
[400470593,1767611438012,-1238.32555244,0.00012657,2]
[400470594,1767611438022,-1238.32555244,0.00012657,2]
[400470595,1767611438031,-1238.32555244,0.00012657,2]
[400470596,1767611438041,-1238.32555244,0.00012657,2]
[400470597,1767611438050,-1238.32555244,0.00012657,2]
[400470598,1767611438059,-1238.32555244,0.00012657,2]
[400470599,1767611438069,-1238.32555244,0.00012657,2]
[400470600,1767611438083,-1238.32555244,0.00012657,2]
[400470601,1767611438093,-1238.32555244,0.00012657,2]
[400470602,1767611438102,-1238.32555244,0.00012657,2]
[400470603,1767611438112,-1238.32555244,0.00012657,2]
[400470604,1767611438122,-158.75,0.00012658,2]
[400470605,1767611438132,-1041.66666667,0.00013222,2]
[400470606,1767611438141,-1138.51357355,0.00014175,2]
[400470607,1767611438151,-177.0,0.00014288,2]
[400470608,1767611438160,-2127.02714711,0.00014561,2]
[400470609,1767611438170,-410.26491217,0.00014809,2]
[400470610,1767611438179,-3115.54072067,0.000159,4]
[400470611,1767611438189,-204.0,0.00016288,2]
[400470612,1767611438198,-500.0,0.00016438,2]
[400470613,1767611438208,-500.0,0.00016438,2]
[400470614,1767611438217,-119.52804569,0.00016438,2]
[400470629,1767611440267,-4958.17270198,0.00012657,2]
[400470668,1767611615227,1012.0,0.000301,120]
[400470669,1767611978347,153.65,7.455e-05,2]
[400470670,1767611978778,175.6,7.731e-05,2]
[400470671,1767611979287,197.55,8.007e-05,2]
[400470672,1767611980003,219.5,8.283e-05,2]
[400470702,1767612631965,-1054.42585719,0.0001,2]
[400470703,1767612631980,-1308.94421021,0.0001,2]
[400470704,1767612631992,-1041.66666667,0.00013244,2]
[400470705,1767612632003,-177.0,0.00013326,2]
[400470706,1767612632015,-1122.74662548,0.00014175,2]
[400470707,1767612632027,-2095.49325097,0.00014661,2]
[400470708,1767612632038,-204.0,0.00015326,2]
[400470709,1767612632049,-10000.029011,0.00015368,2]
[400470730,1767612638118,-20199.22090787,0.00015368,2]
[400470731,1767612638130,-178.0,0.00015463,2]
[400470732,1767612638141,-3068.23987646,0.00015997,4]
[400470733,1767612638151,-500.0,0.00016438,2]
[400470734,1767612638162,-500.0,0.00016438,2]
[400470735,1767612638173,-500.0,0.00016438,2]
[400470736,1767612638184,-500.0,0.00016438,2]
[400470737,1767612638194,-500.0,0.00016438,2]
[400470738,1767612638204,-500.0,0.00016438,2]
[400470739,1767612638214,-500.0,0.00016438,2]
[400470740,1767612638225,-500.0,0.00016438,2]
[400470741,1767612638235,-500.0,0.00016438,2]
[400470742,1767612638246,-168.95068558,0.00016438,2]
[400470743,1767612638258,-500.0,0.00016438,2]
[400470744,1767612638268,-231.0,0.00017326,2]
[400470745,1767612638278,-4040.98650195,0.00017332,6]
[400470746,1767612638288,-500.0,0.00018256,7]
[400470747,1767612638298,-178.0,0.00018463,2]
[400470748,1767612638309,-5013.73312743,0.00018668,9]
[400470749,1767612638320,-303.9317439,0.00018695,2]
[400470750,1767612638330,-612.1158729,0.00018695,2]
[400470751,1767612638340,-303.9317439,0.00018695,2]
[400470752,1767612638351,-600.5116762,0.00018695,2]
[400470753,1767612638362,-303.9317439,0.00018695,2]
[400470754,1767612638372,-600.5116762,0.00018695,2]
[400470755,1767612638383,-303.9317439,0.00018695,2]
[400470756,1767612638394,-303.9317439,0.00018695,2]
[400470757,1767612638405,-220.9384796,0.00018695,2]
[400470758,1767612638416,-258.0,0.00019326,2]
[400470759,1767612638426,-151.0,0.00019327,2]
[400470760,1767612638437,-200.17817069,0.000195,2]
[400470761,1767612638447,-435.42369771,0.00019502,2]
[400470762,1767612638458,-167.75,0.000196,2]
[400470763,1767612638472,-157.53384048,0.000199,2]
[400470764,1767612638482,-1000.0,0.0001992,5]
[400470765,1767612638492,-1000.0,0.0001994,5]
[400470766,1767612638504,-1000.0,0.0001996,5]
[400470767,1767612638515,-1000.0,0.0001998,5]
[400470768,1767612638526,-496.47127165,0.00019988,2]
[400470769,1767612638538,-151.0,0.00019988,2]
[400470770,1767612638550,-151.0,0.00019988,2]
[400470771,1767612638560,-223398.78343133,0.0002,2]
[400470772,1767612638573,-848.78,0.0002,2]
[400470773,1767612640233,-4652.90377383,0.0002,2]
[400470993,1767613372090,162.51,9.245e-05,2]
[400470995,1767613454001,5302.33826564,0.0003,120]
[400470996,1767613519800,858.27581946,0.0003,120]
[400470997,1767613535124,858.27581946,0.0003,120]
[400470998,1767613548819,1278.7857276,0.0003,120]
[400470999,1767613587320,676.19836875,0.0003,120]
[400471002,1767613693055,1700.86139537,0.0003,120]
[400471143,1767613846380,-579.902066,0.00013699,2]
[400471144,1767613846390,-191.30920821,0.00014989,2]
[400471145,1767613846399,-990.66044195,0.00014989,2]
[400471146,1767613846409,-990.66044195,0.00014989,2]
[400471147,1767613846418,-990.66044195,0.00014989,2]
[400471148,1767613846427,-990.66044195,0.00014989,2]
[400471149,1767613846437,-990.66044195,0.00014989,2]
[400471151,1767613846446,-990.66044195,0.00014989,2]
[400471152,1767613846455,-990.66044195,0.00014989,2]
[400471153,1767613846465,-990.66044195,0.00014989,2]
[400471155,1767613846474,-990.66044195,0.00014989,2]
[400471156,1767613846484,-990.66044195,0.00014989,2]
[400471157,1767613846493,-990.66044195,0.00014989,2]
[400471159,1767613846502,-990.66044195,0.00014989,2]
[400471160,1767613846511,-990.66044195,0.00014989,2]
[400471161,1767613846520,-990.66044195,0.00014989,2]
[400471162,1767613846530,-990.66044195,0.00014989,2]
[400471163,1767613846539,-990.66044195,0.00014989,2]
[400471165,1767613846548,-990.66044195,0.00014989,2]
[400471166,1767613846557,-990.66044195,0.00014989,2]
[400471167,1767613846566,-990.66044195,0.00014989,2]
[400471168,1767613846576,-990.66044196,0.00014989,2]
[400471169,1767613846585,-990.66044196,0.00014989,2]
[400471170,1767613846594,-990.66044196,0.00014989,2]
[400471171,1767613846603,-990.66044196,0.00014989,2]
[400471172,1767613846612,-990.66044196,0.00014989,2]
[400471173,1767613846620,-990.66044196,0.00014989,2]
[400471174,1767613846630,-990.66044196,0.00014989,2]
[400471175,1767613846638,-990.66044196,0.00014989,2]
[400471176,1767613846648,-990.66044196,0.00014989,2]
[400471177,1767613846657,-990.66044196,0.00014989,2]
[400471178,1767613846666,-990.66044196,0.00014989,2]
[400471179,1767613846675,-1188.79253032,0.00014989,2]
[400471180,1767613846684,-35566.10979861,0.0001499,2]
[400471181,1767614025041,155.0,7e-05,2]
[400471237,1767615038328,-711.99828002,0.00014678,2]
[400471238,1767615038338,-631.0,0.00014678,2]
[400471239,1767615038348,-157.53384048,0.00014783,2]
[400471240,1767615038357,-157.53384048,0.00014789,2]
[400471241,1767615038367,-157.53384048,0.00014794,2]
[400471242,1767615038376,-157.53384048,0.000148,2]
[400471243,1767615038386,-305.12365129,0.00014881,2]
[400471244,1767615038395,-726.42904131,0.00014881,2]
[400471245,1767615038405,-500.0,0.00014881,2]
[400471246,1767615038414,-726.42904131,0.00014881,2]
[400471247,1767615038423,-593.92032398,0.00014881,2]
[400471248,1767615038433,-726.42904131,0.00014881,2]
[400471249,1767615038442,-194.2760508,0.00014881,2]
[400471250,1767615038457,-532.15299051,0.00014881,2]
[400471251,1767615038467,-726.42904131,0.00014881,2]
[400471252,1767615038476,-726.42904131,0.00014881,2]
[400471253,1767615038485,-726.42904131,0.00014881,2]
[400471254,1767615038494,-78.81155086,0.00014881,2]
[400471255,1767615038508,-647.61749045,0.00014881,2]
[400471256,1767615038517,-726.42904131,0.00014881,2]
[400471257,1767615038527,-726.42904131,0.00014881,2]
[400471258,1767615038536,-174.47266896,0.00014881,2]
[400471259,1767615038547,-482.24165179,0.00014881,2]
[400471260,1767615038558,-69.71472056,0.00014881,2]
[400471261,1767615038568,-726.42904131,0.00014881,2]
[400471262,1767615038577,-726.42904131,0.00014881,2]
[400471263,1767615038587,-726.42904131,0.00014881,2]
[400471264,1767615038596,-726.42904131,0.00014881,2]
[400471265,1767615038606,-726.42904131,0.00014881,2]
[400471266,1767615038615,-500.0,0.00014881,2]
[400471267,1767615038625,-500.0,0.00014881,2]
[400471268,1767615038634,-500.0,0.00014881,2]
[400471269,1767615038644,-500.0,0.00014881,2]
[400471270,1767615038653,-500.0,0.00014881,2]
[400471271,1767615038663,-500.0,0.00014881,2]
[400471272,1767615038672,-500.0,0.00014881,2]
[400471273,1767615038682,-500.0,0.00014881,2]
[400471274,1767615038692,-468.22722687,0.00014881,2]
[400471275,1767615038701,-500.0,0.00014881,2]
[400471276,1767615038710,-500.0,0.00014881,2]
[400471277,1767615038719,-500.0,0.00014881,2]
[400471278,1767615038729,-500.0,0.00014881,2]
[400471279,1767615038738,-500.0,0.00014881,2]
[400471280,1767615038748,-500.0,0.00014881,2]
[400471281,1767615038758,-500.0,0.00014881,2]
[400471282,1767615038767,-500.0,0.00014881,2]
[400471283,1767615038777,-500.0,0.00014881,2]
[400471284,1767615038786,-500.0,0.00014881,2]
[400471285,1767615038795,-500.0,0.00014881,2]
[400471286,1767615038805,-500.0,0.00014881,2]
[400471287,1767615038814,-500.0,0.00014881,2]
[400471288,1767615038824,-500.0,0.00014881,2]
[400471289,1767615038834,-500.0,0.00014881,2]
[400471290,1767615038843,-500.0,0.00014881,2]
[400471291,1767615038853,-500.0,0.00014881,2]
[400471292,1767615038863,-500.0,0.00014881,2]
[400471293,1767615038872,-500.0,0.00014881,2]
[400471294,1767615038882,-500.0,0.00014881,2]
[400471295,1767615038891,-500.0,0.00014881,2]
[400471296,1767615038900,-500.0,0.00014881,2]
[400471297,1767615038910,-500.0,0.00014881,2]
[400471298,1767615038919,-500.0,0.00014881,2]
[400471299,1767615038929,-500.0,0.00014881,2]
[400471300,1767615038939,-500.0,0.00014881,2]
[400471301,1767615038949,-500.0,0.00014881,2]
[400471302,1767615038959,-500.0,0.00014881,2]
[400471303,1767615038968,-500.0,0.00014881,2]
[400471304,1767615038978,-500.0,0.00014881,2]
[400471305,1767615038987,-500.0,0.00014881,2]
[400471306,1767615038996,-500.0,0.00014881,2]
[400471307,1767615039006,-500.0,0.00014881,2]
[400471308,1767615039016,-500.0,0.00014881,2]
[400471309,1767615039026,-500.0,0.00014881,2]
[400471310,1767615039036,-500.0,0.00014881,2]
[400471311,1767615039046,-500.0,0.00014881,2]
[400471312,1767615039056,-500.0,0.00014881,2]
[400471313,1767615039065,-500.0,0.00014881,2]
[400471314,1767615039075,-468.84393184,0.00014881,2]
[400471315,1767615039084,-500.0,0.00014881,2]
[400471316,1767615039095,-500.0,0.00014881,2]
[400471317,1767615039104,-500.0,0.00014881,2]
[400471318,1767615039114,-500.0,0.00014881,2]
[400471319,1767615039123,-500.0,0.00014881,2]
[400471320,1767615039132,-500.0,0.00014881,2]
[400471321,1767615039142,-500.0,0.00014881,2]
[400471322,1767615039151,-500.0,0.00014881,2]
[400471323,1767615039161,-500.0,0.00014881,2]
[400471324,1767615039170,-500.0,0.00014881,2]
[400471325,1767615039179,-500.0,0.00014881,2]
[400471326,1767615039191,-500.0,0.00014881,2]
[400471327,1767615039200,-500.0,0.00014881,2]
[400471328,1767615039210,-500.0,0.00014881,2]
[400471329,1767615039220,-500.0,0.00014881,2]
[400471330,1767615039230,-500.0,0.00014881,2]
[400471331,1767615039239,-500.0,0.00014881,2]
[400471332,1767615039249,-500.0,0.00014881,2]
[400471333,1767615039260,-500.0,0.00014881,2]
[400471334,1767615039269,-500.0,0.00014881,2]
[400471335,1767615039279,-500.0,0.00014881,2]
[400471336,1767615039289,-500.0,0.00014881,2]
[400471337,1767615039298,-500.0,0.00014881,2]
[400471338,1767615039307,-500.0,0.00014881,2]
[400471339,1767615039317,-500.0,0.00014881,2]
[400471340,1767615039326,-500.0,0.00014881,2]
[400471341,1767615039335,-500.0,0.00014881,2]
[400471342,1767615039345,-500.0,0.00014881,2]
[400471343,1767615039355,-500.0,0.00014881,2]
[400471344,1767615039365,-500.0,0.00014881,2]
[400471345,1767615039375,-500.0,0.00014881,2]
[400471346,1767615039385,-500.0,0.00014881,2]
[400471347,1767615039395,-500.0,0.00014881,2]
[400471348,1767615039404,-500.0,0.00014881,2]
[400471349,1767615039414,-500.0,0.00014881,2]
[400471350,1767615039424,-500.0,0.00014881,2]
[400471351,1767615039433,-500.0,0.00014881,2]
[400471352,1767615039443,-500.0,0.00014881,2]